bitfinex/quotes_BTCUSD_20251120
["timestamp","ask_amount","ask_price","bid_price","bid_amount"]
[1763654525376,0.22245486,89906.0,89872.0,0.24178682]
[1763654525377,0.22245951,89904.0,89872.0,0.01925]
[1763654525592,0.22625774,89905.0,89880.0,0.58036373]
[1763654525947,0.0038,89905.0,89880.0,0.81400721]
[1763654526270,0.22625771,89905.0,89872.0,0.01925]
[1763654526490,2.34523371,89904.0,89903.0,0.00065791]
[1763654526692,2.34523371,89904.0,89903.0,0.00052791]
[1763654526844,2.45060558,89904.0,89903.0,0.00052791]
[1763654527250,2.40060558,89904.0,89903.0,0.00052791]
[1763654527469,2.45270807,89904.0,89903.0,0.00052791]
[1763654527668,2.45270807,89904.0,89860.0,0.58036373]
[1763654527669,0.00999999,89870.0,89860.0,0.58036373]
[1763654527868,0.0038,89869.0,89867.0,0.23367674]
[1763654528066,0.00042004,89870.0,89869.0,0.22254615]
[1763654528272,0.00042004,89870.0,89867.0,0.23367674]
[1763654528478,0.00042004,89870.0,89869.0,0.22254615]
[1763654528726,0.00042004,89870.0,89869.0,0.29156413]
[1763654528887,0.00042004,89870.0,89869.0,0.06901798]
[1763654529088,0.00042004,89870.0,89869.0,0.06929699]
[1763654529314,0.00042004,89870.0,89869.0,0.06901798]
[1763654529515,0.00042004,89870.0,89860.0,0.59149215]
[1763654529716,0.00042004,89870.0,89860.0,0.58036373]
[1763654530113,0.02223371,89869.0,89860.0,0.58036373]
[1763654530526,0.02223371,89869.0,89857.0,0.00150945]
[1763654530728,0.02223371,89869.0,89859.0,0.58495683]
[1763654530965,0.02223371,89869.0,89860.0,0.00028243]
[1763654531218,0.02223371,89869.0,89861.0,0.01112829]
[1763654531424,0.02223371,89869.0,89860.0,0.00028181]
[1763654531655,0.0038,89868.0,89860.0,0.00028181]
[1763654531872,0.0038,89868.0,89860.0,0.00028243]
[1763654532095,0.02223371,89867.0,89859.0,0.0045931]
[1763654532756,0.24478519,89867.0,89859.0,0.0045931]
[1763654532979,0.02223371,89867.0,89859.0,0.0045931]
[1763654533395,0.22256368,89862.0,89859.0,0.0045931]
[1763654533524,0.22255593,89866.0,89859.0,0.0045931]
[1763654533726,0.22255905,89864.0,89859.0,0.0045931]
[1763654533962,0.22256627,89861.0,89859.0,0.0045931]
[1763654535623,2.323,89860.0,89859.0,0.0045931]
[1763654536787,2.325,89860.0,89859.0,0.0045931]
[1763654536984,0.0058,89860.0,89859.0,0.0045931]
[1763654537416,2.3288,89860.0,89859.0,0.0045931]
[1763654538021,2.3298,89860.0,89859.0,0.0045931]
[1763654538573,0.003,89860.0,89859.0,0.0045931]
[1763654538937,0.003,89860.0,89859.0,0.0048783]
[1763654539142,0.002,89860.0,89859.0,0.22716401]
[1763654539348,0.002,89860.0,89859.0,0.0045931]
[1763654539705,0.003,89860.0,89859.0,0.0048783]
[1763654539921,0.001,89860.0,89859.0,0.0045931]
[1763654540186,0.001,89860.0,89859.0,0.22716401]
[1763654540402,0.003,89860.0,89859.0,0.0045931]
[1763654540614,0.001,89860.0,89859.0,0.0045931]
[1763654540839,0.0038,89866.0,89859.0,0.0045931]
[1763654541057,0.001,89860.0,89859.0,0.0045931]
[1763654541280,0.002,89860.0,89859.0,0.0045931]
[1763654541683,0.001,89860.0,89859.0,0.0045931]
[1763654541890,0.0278195,89865.0,89859.0,0.0045931]
[1763654542742,0.00042004,89870.0,89868.0,0.22254698]
[1763654543096,0.0038,89869.0,89868.0,0.22254698]
[1763654543465,0.0038,89869.0,89868.0,0.23355786]
[1763654543872,0.0038,89869.0,89868.0,0.33371535]
[1763654544104,0.0038,89869.0,89868.0,0.01101088]
[1763654545478,0.00042004,89870.0,89869.0,0.22254615]
[1763654545685,0.00042004,89870.0,89869.0,0.28415615]
[1763654545814,4e-08,89870.0,89869.0,0.28517603]
[1763654546815,4e-08,89870.0,89869.0,0.22356603]
[1763654547091,4e-08,89870.0,89869.0,0.37985102]
[1763654548031,4e-08,89870.0,89869.0,0.70385102]
[1763654548231,4e-08,89870.0,89869.0,0.75595351]
[1763654548616,4e-08,89870.0,89869.0,0.24856603]
[1763654549028,4e-08,89870.0,89869.0,0.28617603]
[1763654549435,4e-08,89870.0,89869.0,0.28517603]
[1763654549832,4e-08,89870.0,89869.0,0.24956603]
[1763654550479,4e-08,89870.0,89869.0,0.00201988]
[1763654550684,0.11000004,89870.0,89869.0,0.07454025]
[1763654550884,0.11000004,89870.0,89869.0,0.00201988]
[1763654551087,0.11000004,89870.0,89869.0,0.00101988]
[1763654551780,0.11000004,89870.0,89869.0,0.22356603]
[1763654553789,0.11000004,89870.0,89869.0,0.00101988]
[1763654554615,0.22256843,89860.0,89857.0,0.00150945]
[1763654555028,0.01112817,89862.0,89830.0,0.73013331]
[1763654555029,0.00999999,89840.0,89830.0,0.0002]
[1763654555215,0.0038,89839.0,89830.0,0.0002]
[1763654555782,0.22642227,89839.0,89830.0,0.0002]
[1763654555934,0.0038,89839.0,89830.0,0.0002]
[1763654556135,0.0038,89839.0,89830.0,0.00062]
[1763654556461,0.02223371,89831.0,89830.0,0.00062]
[1763654556807,0.00999999,89840.0,89830.0,0.00062]
[1763654557013,0.02603371,89831.0,89830.0,0.22326276]
[1763654557234,0.0038,89831.0,89830.0,0.00062]
[1763654557681,0.00999999,89840.0,89830.0,0.0483447]
[1763654558008,0.0038,89839.0,89838.0,0.22262294]
[1763654558220,0.0038,89839.0,89806.0,0.44540018]
[1763654558420,0.00999999,89830.0,89820.0,0.72993331]
[1763654558660,0.00999999,89830.0,89828.0,0.22264564]
[1763654559382,0.00999999,89830.0,89824.0,0.01113288]
[1763654559787,0.00999999,89830.0,89828.0,0.2226465]
[1763654559992,0.00041978,89839.0,89838.0,0.22262294]
[1763654560186,0.00421978,89839.0,89829.0,0.74106557]
[1763654560313,0.02223371,89836.0,89829.0,0.72993331]
[1763654560507,0.00999999,89830.0,89822.0,0.01113312]
[1763654560722,0.00421978,89839.0,89834.0,0.01113164]
[1763654560723,0.00041978,89839.0,89834.0,0.01113164]
[1763654560920,0.00041978,89839.0,89820.0,0.76304331]
[1763654560921,0.00999999,89830.0,89820.0,0.72993331]
[1763654561378,0.00999999,89830.0,89812.0,0.01113436]
[1763654561605,0.00999999,89830.0,89825.0,0.01113275]
[1763654561855,0.00999999,89830.0,89820.0,0.74106668]
[1763654561856,0.00041978,89839.0,89836.0,0.23375704]
[1763654562086,0.0038,89838.0,89837.0,0.22262377]
[1763654562305,0.0038,89838.0,89831.0,0.01113201]
[1763654562515,0.0038,89838.0,89818.0,0.03311]
[1763654562516,0.02223371,89835.0,89821.0,0.01113325]
[1763654562734,0.00999999,89830.0,89819.0,0.0111335]
[1763654562972,0.00999999,89830.0,89821.0,0.01113325]
[1763654563189,0.00999999,89830.0,89818.0,0.24481487]
[1763654563190,0.00999999,89830.0,89818.0,0.01101088]
[1763654563631,0.00999999,89830.0,89820.0,0.72993331]
[1763654563859,0.02223371,89835.0,89820.0,0.72993331]
[1763654563860,0.02223371,89835.0,89826.0,0.01113263]
[1763654564084,0.02603371,89834.0,89826.0,0.01113263]
[1763654564319,0.00999999,89830.0,89821.0,0.01113325]
[1763654564532,0.00999999,89830.0,89827.0,0.23378021]
[1763654564757,0.0038,89829.0,89828.0,0.22264602]
[1763654564964,0.0038,89829.0,89821.0,0.01113325]
[1763654564965,0.0038,89829.0,89819.0,0.72993331]
[1763654565174,0.0038,89829.0,89821.0,0.01113325]
[1763654565391,0.0038,89829.0,89822.0,0.01113312]
[1763654565632,0.0038,89829.0,89821.0,0.01113325]
[1763654565849,0.0038,89829.0,89818.0,0.01101088]
[1763654566064,0.0038,89829.0,89828.0,0.00123065]
[1763654566505,0.0362,89829.0,89828.0,0.00123065]
[1763654568056,0.0038,89829.0,89828.0,0.00123065]
[1763654568424,0.0362,89829.0,89828.0,0.00123065]
[1763654568624,0.02,89829.0,89828.0,0.00123065]
[1763654569031,0.0048,89829.0,89828.0,0.00123065]
[1763654569232,0.0058,89829.0,89828.0,0.00123065]
[1763654569709,0.0382,89829.0,89828.0,0.00123065]
[1763654569916,0.022,89829.0,89828.0,0.00123065]
[1763654570125,0.002,89829.0,89828.0,0.00123065]
[1763654570337,0.0058,89829.0,89828.0,0.00123065]
[1763654571277,0.0048,89829.0,89828.0,0.00123065]
[1763654571692,0.0058,89829.0,89828.0,0.00123065]
[1763654571912,0.0048,89829.0,89828.0,0.00123065]
[1763654572370,0.0058,89829.0,89828.0,0.00123065]
[1763654573458,0.04983065,89829.0,89828.0,0.00123065]
[1763654573689,0.06603065,89829.0,89828.0,0.00123065]
[1763654574147,0.04983065,89829.0,89828.0,0.00123065]
[1763654575330,0.03363065,89829.0,89828.0,0.00123065]
[1763654575746,0.04983065,89829.0,89828.0,0.00123065]
[1763654576168,0.15983065,89829.0,89828.0,0.00123065]
[1763654576816,0.17603065,89829.0,89828.0,0.00123065]
[1763654577931,0.15983065,89829.0,89828.0,0.00123065]
[1763654578141,0.14363065,89829.0,89828.0,0.00123065]
[1763654578599,0.17603065,89829.0,89828.0,0.00123065]
[1763654578809,0.15983065,89829.0,89828.0,0.00123065]
[1763654579013,0.38853907,89829.0,89828.0,0.00123065]
[1763654579219,0.37084524,89829.0,89828.0,0.00123065]
[1763654580535,0.69384524,89829.0,89828.0,0.00123065]
[1763654580749,0.67564524,89829.0,89828.0,0.00123065]
[1763654580981,0.69284524,89829.0,89828.0,0.00123065]
[1763654581425,0.69384524,89829.0,89828.0,0.00123065]
[1763654581634,0.72668608,89829.0,89828.0,0.00123065]
[1763654581849,0.70508737,89829.0,89828.0,0.00123065]
[1763654582089,0.69484524,89829.0,89828.0,0.00123065]
[1763654582324,2.83307597,89829.0,89828.0,0.00123065]
[1763654582538,2.88517846,89829.0,89828.0,0.00123065]
[1763654582750,2.93517846,89829.0,89828.0,0.00123065]
[1763654583343,2.93517846,89829.0,89810.0,4.042e-05]
[1763654583344,0.33413374,89817.0,89810.0,4.042e-05]
[1763654583537,0.01247,89811.0,89810.0,4.042e-05]
[1763654583743,0.03850371,89811.0,89810.0,4.042e-05]
[1763654583924,0.05097371,89811.0,89810.0,4.042e-05]
[1763654584122,0.04717371,89811.0,89810.0,0.00058093]
[1763654584402,0.05097371,89811.0,89810.0,0.00058093]
[1763654584905,0.05139323,89811.0,89810.0,0.00058093]
[1763654585096,0.05239323,89811.0,89810.0,0.00058093]
[1763654585319,0.05339323,89811.0,89810.0,0.00058093]
[1763654585525,2.37639323,89811.0,89810.0,0.00058093]
[1763654585742,2.39998325,89811.0,89810.0,0.00058093]
[1763654585964,2.46021943,89811.0,89810.0,0.00058093]
[1763654586173,2.49815446,89811.0,89810.0,0.00058093]
[1763654586410,2.529785,89811.0,89810.0,0.00058093]
[1763654586626,2.50024408,89811.0,89810.0,0.00058093]
[1763654587036,2.55024408,89811.0,89810.0,0.00058093]
[1763654587491,0.59570722,89804.0,89803.0,9e-05]
[1763654587703,2.2894625,89804.0,89803.0,9e-05]
[1763654587940,0.01627,89804.0,89803.0,9e-05]
[1763654588161,0.23269359,89810.0,89803.0,9e-05]
[1763654588162,0.02783716,89808.0,89803.0,0.01115311]
[1763654588603,0.02465323,89811.0,89809.0,0.22269483]
[1763654588604,0.00041952,89811.0,89809.0,0.22269483]
[1763654588832,0.00041952,89811.0,89810.0,0.07136504]
[1763654589038,0.00341952,89811.0,89810.0,0.10545504]
[1763654589252,0.00141952,89811.0,89810.0,0.10545504]
[1763654589473,0.00041952,89811.0,89805.0,0.01113523]
[1763654589711,0.00041952,89811.0,89803.0,0.01115311]
[1763654589712,0.02223371,89809.0,89803.0,0.01115311]
[1763654589928,0.02783716,89808.0,89803.0,0.01115311]
[1763654590155,0.00041952,89811.0,89803.0,0.05637859]
[1763654590389,0.00041952,89811.0,89803.0,0.01115311]
[1763654590593,0.01379999,89810.0,89803.0,0.01115311]
[1763654590795,0.001,89808.0,89805.0,0.01113523]
[1763654591038,0.0038,89807.0,89806.0,0.22270226]
[1763654591261,0.0038,89807.0,89803.0,0.01115311]
[1763654591468,0.02223371,89806.0,89803.0,0.01115311]
[1763654591705,0.02783809,89805.0,89803.0,0.01115311]
[1763654591907,0.0234616,89804.0,89803.0,0.01115311]
[1763654592112,0.02223371,89805.0,89803.0,0.01115311]
[1763654592320,0.0278384,89804.0,89803.0,0.01115311]
[1763654592537,0.26301562,89804.0,89803.0,0.01115311]
[1763654592738,0.0403084,89804.0,89803.0,0.01115311]
[1763654592964,0.0527784,89804.0,89803.0,0.01115311]
[1763654593177,0.4257784,89804.0,89803.0,0.01115311]
[1763654593378,0.39794,89804.0,89803.0,0.01115311]
[1763654593610,2.39794,89804.0,89803.0,0.01115311]
[1763654593851,1.84795902,89804.0,89803.0,9e-05]
[1763654594255,0.89880443,89804.0,89803.0,9e-05]
[1763654594670,0.84880443,89804.0,89803.0,9e-05]
[1763654594916,0.90079443,89804.0,89803.0,9e-05]
[1763654595349,0.85179443,89804.0,89803.0,9e-05]
[1763654595788,0.51881343,89804.0,89803.0,9e-05]
[1763654596019,0.62673565,89804.0,89803.0,9e-05]
[1763654596263,0.62771018,89804.0,89803.0,9e-05]
[1763654596521,0.73046222,89804.0,89803.0,9e-05]
[1763654596740,0.57644722,89804.0,89803.0,9e-05]
[1763654596957,0.64682584,89804.0,89803.0,9e-05]
[1763654597175,0.57744722,89804.0,89803.0,9e-05]
[1763654597379,0.69664022,89804.0,89803.0,9e-05]
[1763654597670,0.71701399,89804.0,89803.0,9e-05]
[1763654597877,0.80067405,89804.0,89803.0,9e-05]
[1763654598305,0.80167405,89804.0,89803.0,9e-05]
[1763654598951,0.75167405,89804.0,89803.0,9e-05]
[1763654599174,0.62668105,89804.0,89803.0,9e-05]
[1763654599399,4.86608849,89803.0,89802.0,0.00024027]
[1763654599620,0.02999997,89750.0,89747.0,0.23398989]
[1763654599840,0.0038,89749.0,89747.0,0.23399043]
[1763654600064,0.04393997,89760.0,89754.0,0.01114156]
[1763654600310,0.02223371,89756.0,89748.0,0.0111423]
[1763654600553,0.02223371,89756.0,89754.0,0.22282907]
[1763654600777,0.02108,89759.0,89756.0,0.01114131]
[1763654601014,0.0038,89758.0,89757.0,0.22282203]
[1763654601237,0.0038,89758.0,89750.0,0.01114206]
[1763654601238,0.0214,89757.0,89750.0,0.01114206]
[1763654601459,0.0038,89758.0,89749.0,0.01103]
[1763654601685,0.0038,89758.0,89744.0,0.22285383]
[1763654601901,0.0038,89758.0,89738.0,0.22286887]
[1763654601902,0.00979991,89740.0,89738.0,0.22286967]
[1763654602113,0.02223371,89749.0,89742.0,0.23400172]
[1763654602323,0.02223371,89756.0,89750.0,0.01114206]
[1763654602543,0.0038,89755.0,89749.0,0.01114218]
[1763654602791,0.0038,89755.0,89753.0,0.22283273]
[1763654603021,0.001,89757.0,89753.0,0.22283273]
[1763654603022,0.001,89757.0,89755.0,0.22282881]
[1763654603234,0.0038,89756.0,89755.0,0.22282881]
[1763654603482,0.001,89757.0,89755.0,0.22282881]
[1763654603691,0.001,89757.0,89756.0,0.05188]
[1763654604089,0.00041926,89759.0,89757.0,0.22282384]
[1763654604322,0.00041926,89759.0,89758.0,0.02237]
[1763654605151,0.00041926,89759.0,89758.0,0.22282136]
[1763654605411,0.01769926,89759.0,89757.0,0.22282286]
[1763654605613,0.01769926,89759.0,89749.0,0.58177685]
[1763654605614,0.0214,89757.0,89747.0,0.01114243]
[1763654605817,0.00979991,89750.0,89747.0,0.01114243]
[1763654606023,0.0038,89749.0,89747.0,0.23398974]
[1763654606226,0.0038,89749.0,89739.0,0.01114342]
[1763654606342,0.01769926,89759.0,89752.0,0.22283501]
[1763654606547,0.02223371,89755.0,89753.0,0.22283259]
[1763654606961,0.00041926,89759.0,89758.0,0.22282136]
[1763654607171,0.00041926,89759.0,89752.0,0.01114181]
[1763654607172,0.00979991,89750.0,89736.0,0.22287599]
[1763654607370,0.00421926,89759.0,89719.0,0.01103]
[1763654607371,0.00979991,89730.0,89719.0,0.04054]
[1763654607572,0.01999998,89740.0,89719.0,0.04054]
[1763654607573,0.0038,89729.0,89726.0,0.23404343]
[1763654607777,0.0038,89729.0,89724.0,0.01114529]
[1763654607977,0.01728,89728.0,89724.0,0.01114529]
[1763654608200,0.03224,89727.0,89700.0,0.02039215]
[1763654608411,0.02979989,89720.0,89719.0,0.22291822]
[1763654608610,0.000419,89727.0,89724.0,0.01114529]
[1763654608816,0.0038,89726.0,89724.0,0.22290571]
[1763654609013,0.000419,89727.0,89726.0,0.22290083]
[1763654609228,0.004219,89727.0,89726.0,0.22290083]
[1763654609417,0.000419,89727.0,89726.0,0.22290083]
[1763654609934,0.004219,89727.0,89726.0,0.24381083]
[1763654610388,0.000419,89727.0,89726.0,0.31709848]
[1763654610728,0.000419,89727.0,89726.0,0.27498083]
[1763654610934,0.000419,89727.0,89726.0,0.24381083]
[1763654611138,0.000419,89727.0,89726.0,0.22518547]
[1763654612352,0.000419,89727.0,89726.0,0.00228464]
[1763654613143,0.000419,89727.0,89726.0,0.05427464]
[1763654613517,0.000419,89727.0,89726.0,0.02339464]
[1763654613663,0.000419,89727.0,89726.0,0.00228464]
[1763654614076,0.056849,89727.0,89726.0,0.00228464]
[1763654614273,0.022969,89727.0,89726.0,0.00228464]
[1763654614470,0.056849,89727.0,89726.0,0.00228464]
[1763654614928,0.022969,89727.0,89726.0,0.00228464]
[1763654615055,0.004219,89727.0,89726.0,0.00228464]
[1763654615462,0.000419,89727.0,89726.0,0.00228464]
[1763654615661,0.000419,89727.0,89726.0,0.05427464]
[1763654615662,0.004219,89727.0,89726.0,0.05427464]
[1763654615861,0.004219,89727.0,89726.0,0.00228464]
[1763654616526,0.000419,89727.0,89726.0,0.05427464]
[1763654616891,0.000419,89727.0,89726.0,0.00228464]
[1763654618708,0.056849,89727.0,89703.0,0.01114789]
[1763654618895,0.056849,89727.0,89681.0,9e-05]
[1763654618896,0.01669,89719.0,89707.0,0.0111474]
[1763654619095,0.02940684,89720.0,89712.0,0.01114678]
[1763654619437,0.0038,89719.0,89710.0,0.58177685]
[1763654619641,0.00940686,89710.0,89704.0,0.01114777]
[1763654619860,0.00940686,89710.0,89700.0,0.59292512]
[1763654619861,0.02940684,89710.0,89700.0,0.59292512]
[1763654620068,0.02940684,89710.0,89688.0,0.05210249]
[1763654620069,0.02255,89699.0,89673.0,0.22303237]
[1763654620273,0.01999998,89700.0,89682.0,0.0111505]
[1763654620519,0.01999998,89700.0,89674.0,0.00856]
[1763654620520,0.0038,89698.0,89674.0,0.00856]
[1763654620736,0.02255,89693.0,89664.0,0.00475008]
[1763654620942,0.27941284,89693.0,89664.0,0.00475008]
[1763654621179,0.22300727,89684.0,89664.0,0.00475008]
[1763654621402,0.01828,89682.0,89664.0,0.00475008]
[1763654621850,0.03656,89682.0,89664.0,0.00475008]
[1763654622080,0.22302511,89676.0,89675.0,0.06921]
[1763654622296,1.68676471,89676.0,89675.0,0.06921]
[1763654622499,1.67646271,89676.0,89675.0,0.06921]
[1763654622911,0.0101606,89676.0,89675.0,0.06921]
[1763654623138,0.6155426,89676.0,89675.0,0.06921]
[1763654623351,0.0038,89676.0,89675.0,0.06921]
[1763654623763,0.956808,89689.0,89675.0,0.06921]
[1763654623995,0.0038,89688.0,89675.0,0.06921]
[1763654624236,0.104249,89689.0,89675.0,0.06921]
[1763654624457,0.00041874,89693.0,89688.0,0.03742]
[1763654624676,0.00384,89689.0,89688.0,0.01631]
[1763654625103,0.00384,89689.0,89688.0,0.03742]
[1763654625325,0.00041874,89693.0,89688.0,0.03742]
[1763654625326,0.00041874,89693.0,89692.0,0.22298532]
[1763654625562,0.00041874,89693.0,89692.0,0.02111]
[1763654625792,0.02940684,89700.0,89692.0,0.02111]
[1763654625793,0.00384,89695.0,89692.0,0.05387]
[1763654625997,0.00384,89697.0,89693.0,0.05387]
[1763654626201,0.00384,89697.0,89694.0,0.02111]
[1763654626405,0.00384,89697.0,89696.0,0.02111]
[1763654626534,0.00384,89697.0,89696.0,0.03742]
[1763654626949,0.00384,89697.0,89692.0,0.00012614]
[1763654627941,0.02787239,89693.0,89692.0,0.00012614]
[1763654628174,0.22302511,89676.0,89675.0,0.02831]
[1763654628389,0.22302511,89676.0,89618.0,0.01631]
[1763654628390,0.02940684,89670.0,89660.0,0.61008685]
[1763654628603,0.22304995,89667.0,89664.0,0.00516882]
[1763654628816,0.02940684,89670.0,89664.0,0.00516882]
[1763654629030,0.22301594,89680.0,89673.0,0.23418411]
[1763654629031,0.02940684,89680.0,89673.0,0.23418411]
[1763654629248,0.00384,89679.0,89670.0,0.58177685]
[1763654629447,0.00384,89679.0,89669.0,0.58177685]
[1763654629671,0.01999998,89670.0,89664.0,0.00516882]
[1763654629878,0.02940684,89670.0,89664.0,0.00516882]
[1763654630315,0.00384,89669.0,89665.0,0.01858731]
[1763654630541,0.02787239,89666.0,89664.0,0.00516882]
[1763654630735,0.00384,89665.0,89664.0,0.00516882]
[1763654630937,0.02787239,89666.0,89664.0,0.00516882]
[1763654631144,0.22689247,89665.0,89664.0,0.00516882]
[1763654631347,0.22689247,89665.0,89664.0,0.00703469]
[1763654631547,0.00384,89665.0,89664.0,0.00703469]
[1763654631755,0.02787239,89666.0,89664.0,0.00703469]
[1763654631954,0.02787239,89666.0,89665.0,0.00183575]
[1763654632185,0.00384,89666.0,89665.0,0.00183575]
[1763654632388,0.02787239,89679.0,89665.0,0.00183575]
[1763654632596,0.00384,89678.0,89664.0,0.00516882]
[1763654632807,0.00384,89678.0,89668.0,0.58177685]
[1763654633418,0.03171751,89678.0,89668.0,0.58177685]
[1763654633633,0.03171751,89678.0,89664.0,0.00516882]
[1763654633634,0.21978211,89667.0,89664.0,0.00516882]
[1763654633845,0.02787239,89665.0,89664.0,0.00516882]
[1763654634460,0.00384,89665.0,89664.0,0.00516882]
[1763654634886,0.02787239,89669.0,89664.0,0.00516882]
[1763654635087,0.00384,89668.0,89664.0,0.00516882]
[1763654635296,0.02787239,89669.0,89664.0,0.00516882]
[1763654635506,0.00384,89668.0,89664.0,0.00516882]
[1763654635958,0.00384,89667.0,89664.0,0.00516882]
[1763654636180,0.22305188,89666.0,89664.0,0.00516882]
[1763654636621,0.570878,89665.0,89664.0,0.00516882]
[1763654636872,0.968786,89665.0,89664.0,0.00516882]
[1763654637084,0.02787239,89669.0,89664.0,0.00516882]
[1763654637287,0.00384,89668.0,89664.0,0.00516882]
[1763654637502,0.02787239,89669.0,89664.0,0.00516882]
[1763654637697,0.00384,89668.0,89664.0,0.00516882]
[1763654637903,0.22305201,89666.0,89664.0,0.00516882]
[1763654638114,0.00384,89668.0,89664.0,0.00516882]
[1763654638349,0.22304952,89667.0,89665.0,0.00183575]
[1763654638558,0.22304952,89667.0,89664.0,0.00516882]
[1763654638848,0.97393747,89665.0,89664.0,0.00516882]
[1763654639172,0.54809047,89665.0,89664.0,0.00516882]
[1763654639519,0.27689247,89665.0,89664.0,0.00516882]
[1763654639670,0.29438374,89665.0,89664.0,0.00516882]
[1763654639877,0.29054374,89665.0,89664.0,0.00516882]
[1763654640230,0.22689247,89665.0,89664.0,0.00496882]
[1763654641265,3.22689247,89665.0,89664.0,0.00496882]
[1763654641796,3.27789247,89665.0,89664.0,0.00496882]
[1763654642071,3.32787065,89665.0,89664.0,0.00496882]
[1763654642268,3.288035,89665.0,89664.0,0.00496882]
[1763654642612,3.31141921,89665.0,89664.0,0.00496882]
[1763654642826,3.03452674,89665.0,89664.0,0.00496882]
[1763654643054,0.001,89665.0,89664.0,0.00496882]
[1763654643486,0.03272155,89665.0,89664.0,0.00496882]
[1763654643699,0.00384,89665.0,89664.0,0.00496882]
[1763654643912,3.07141033,89665.0,89664.0,0.00496882]
[1763654644121,3.01584,89665.0,89664.0,0.00496882]
[1763654644443,3.05302314,89665.0,89664.0,0.00683469]
[1763654644664,3.05302314,89665.0,89664.0,1e-08]
[1763654644665,3.44815483,89665.0,89664.0,1e-08]
[1763654644875,3.44915483,89665.0,89664.0,1e-08]
[1763654645284,3.44915483,89665.0,89650.0,0.00120859]
[1763654645285,3.41531483,89665.0,89650.0,0.00120859]
[1763654645492,3.0,89652.0,89650.0,0.00120859]
[1763654645599,3.0583024,89651.0,89650.0,0.00120859]
[1763654645816,0.03171239,89651.0,89650.0,0.00120859]
[1763654646049,3.03171239,89651.0,89650.0,0.00120859]
[1763654646246,3.02787239,89651.0,89650.0,0.00120859]
[1763654646445,3.03171239,89651.0,89650.0,0.00120859]
[1763654646667,0.02787239,89651.0,89650.0,0.00120859]
[1763654647034,0.00041856,89665.0,89655.0,0.01115386]
[1763654647238,0.00384,89664.0,89660.0,0.01115324]
[1763654647444,0.00384,89663.0,89660.0,0.01115324]
[1763654647638,0.02940684,89660.0,89635.0,0.01655]
[1763654647840,0.02940684,89660.0,89652.0,0.01115424]
[1763654648049,0.02787239,89654.0,89650.0,0.58298544]
[1763654648286,0.02787239,89654.0,89651.0,0.23424018]
[1763654648483,0.00041856,89665.0,89651.0,0.23424018]
[1763654648484,0.00041856,89665.0,89655.0,0.01115386]
[1763654648698,0.00384,89664.0,89650.0,0.00120859]
[1763654649086,0.00384,89664.0,89646.0,0.06367]
[1763654649087,0.27309725,89647.0,89646.0,0.03]
[1763654649289,3.33088998,89647.0,89646.0,0.03]
[1763654649470,0.05395273,89647.0,89646.0,0.03]
[1763654649692,0.00384,89647.0,89646.0,0.03]
[1763654649824,0.22693725,89647.0,89646.0,0.03]
[1763654650039,0.01401456,89647.0,89646.0,0.03]
[1763654650927,3.01401456,89647.0,89646.0,0.03]
[1763654651366,3.05879458,89647.0,89646.0,0.03]
[1763654651779,3.05779458,89647.0,89646.0,0.030542]
[1763654652182,3.05879458,89647.0,89646.0,0.030542]
[1763654652400,0.05495458,89647.0,89646.0,0.030542]
[1763654652609,0.01501456,89647.0,89646.0,0.030542]
[1763654652817,0.00484,89647.0,89646.0,0.030542]
[1763654653424,0.00384,89647.0,89646.0,0.026642]
[1763654653862,0.00384,89647.0,89626.0,0.01115747]
[1763654653863,0.22317941,89614.0,89600.0,0.001]
[1763654654067,0.0111576,89625.0,89600.0,0.001]
[1763654654068,0.02940684,89620.0,89601.0,0.01655]
[1763654654283,0.00384,89619.0,89610.0,0.58181767]
[1763654654497,0.01999998,89620.0,89614.0,0.03367]
[1763654654743,0.00999999,89620.0,89614.0,0.03367]
[1763654654933,0.00999999,89620.0,89619.0,0.00081332]
[1763654654934,0.00940686,89620.0,89619.0,0.00081332]
[1763654655132,0.00982516,89620.0,89619.0,0.00081332]
[1763654656056,0.0004183,89620.0,89619.0,0.00081332]
[1763654656480,0.01060036,89620.0,89619.0,0.00081332]
[1763654657365,0.03847275,89620.0,89619.0,0.00081332]
[1763654658075,0.02829069,89620.0,89619.0,0.00081332]
[1763654658281,0.0004183,89620.0,89619.0,0.03448332]
[1763654658514,0.0004183,89620.0,89619.0,0.00081332]
[1763654658959,0.22358277,89620.0,89619.0,0.00081332]
[1763654659164,0.23376774,89620.0,89619.0,0.00081332]
[1763654659551,0.01060327,89620.0,89619.0,0.00081332]
[1763654661743,0.01060327,89620.0,89619.0,0.00071332]
[1763654663144,0.04231566,89620.0,89619.0,0.00071332]
[1763654663733,0.01444327,89620.0,89619.0,0.00071332]
[1763654664191,3.01444327,89620.0,89619.0,0.00071332]
[1763654664395,3.06269997,89620.0,89619.0,0.00071332]
[1763654664849,3.04231566,89620.0,89619.0,0.00071332]
[1763654665058,0.04231566,89620.0,89619.0,0.00071332]
[1763654666237,0.03213069,89620.0,89619.0,0.00071332]
[1763654666443,0.04232731,89620.0,89619.0,0.00071332]
[1763654667277,0.01061492,89620.0,89619.0,0.02087332]
[1763654667488,0.01445492,89620.0,89619.0,0.00071332]
[1763654668609,0.04232731,89620.0,89619.0,0.00071332]
[1763654670200,0.06274345,89620.0,89619.0,0.00071332]
[1763654670403,0.03948731,89620.0,89619.0,0.00071332]
[1763654670638,0.04332731,89620.0,89619.0,0.00071332]
[1763654670813,0.04232731,89620.0,89619.0,0.00071332]
[1763654671239,0.04332731,89620.0,89619.0,0.00071332]
[1763654672053,0.06375236,89620.0,89619.0,0.00071332]
[1763654672450,0.04332731,89620.0,89619.0,0.00071332]
[1763654672809,0.04232731,89620.0,89619.0,0.00071332]
[1763654673348,0.07022286,89620.0,89619.0,0.00071332]
[1763654673782,0.09065283,89620.0,89619.0,0.00071332]
[1763654674056,0.07022286,89620.0,89619.0,0.00071332]
[1763654674276,3.07022286,89620.0,89619.0,0.00071332]
[1763654674507,3.04232731,89620.0,89619.0,0.00071332]
[1763654674726,0.04232731,89620.0,89619.0,0.00071332]
[1763654674952,0.07022286,89620.0,89619.0,0.00071332]
[1763654675168,0.08681419,89620.0,89619.0,0.00071332]
[1763654675376,0.07022286,89620.0,89619.0,0.00071332]
[1763654675997,0.09065289,89620.0,89619.0,0.00071332]
[1763654676217,3.09065289,89620.0,89619.0,0.00071332]
[1763654676427,3.06275734,89620.0,89619.0,0.00071332]
[1763654677258,0.06275734,89620.0,89619.0,0.00071332]
[1763654677485,3.09065289,89620.0,89619.0,0.00071332]
[1763654677702,3.06275734,89620.0,89619.0,0.00071332]
[1763654677894,3.06275734,89620.0,89610.0,4.082e-05]
[1763654677895,0.33415909,89613.0,89610.0,4.082e-05]